Cogmind - Beta 16 @@@ ROGUE MODE // 2025.10.29 @ 08:42:11 Player: Lazz Result: Destroyed by B-60 Warrior with Heavy Mace Performance ------------- Evolutions (5) 2500 Regions Visited (5) 1000 Robots Destroyed (59) 295 Value Destroyed (2229) 2229 Prototype IDs (1) 20 Alien Tech Used (0) 0 Bonus (1325) 1325 TOTAL SCORE: 7369 Bonus ------- High Alert Combat Kills 191 Follower Combat Kills 377 Registered with UFD 300 Met Optimus in HQ 500 Friendly Fire -43 Cogmind --------- Core Integrity 0/1000 Matter 239/300 Energy 22/100 System Corruption 21% Temperature Cool (0) Movement Walking (190) Ox1 Location -5/Factory Parts ------- > --- POWER (2) -------- (None) > --- PROPULSION (4) --- Carbon-fiber Leg > --- UTILITY (7) ------ Scrap Suit Improved Coolant Injector Large Storage Unit Improved Target Analyzer Kinecellerator > --- WEAPON (4) ------- (None) > --- INVENTORY (15) --- (None) Peak State ------------ > --- POWER ------------ Light Fission Core Micro Fission Core > --- PROPULSION ------- Armored Treads Overtuned Medium Treads Overtuned Medium Treads Overtuned Medium Treads > --- UTILITY ---------- Scrap Suit Power Amplifier Large Storage Unit Improved Signal Interpreter Scrapoid Pod > --- WEAPON ----------- Variable Charge Gun Heavy Phase Cannon Junk Cannon > --- INVENTORY -------- Light Ion Engine Aluminum Leg Scrap Suit Improved Coolant Injector Improved Signal Interpreter Improved Target Analyzer Improved Light Armor Plating Improved Arc Projector Heavy Phase Cannon Rocket Launcher Smartbomb Launcher [Rating: 90] Favorites ----------- Power Light Nuclear Core Engine Light Ion Engine Power Core Light Nuclear Core Propulsion Overtuned Medium Treads Treads Overtuned Medium Treads Leg Carbon-fiber Leg Hover Unit Antigrav System Utility Improved Signal Interpreter Device Improved Heat Sink Storage Large Storage Unit Processor Improved Signal Interpreter Protection Improved Heavy Armor Plating Weapon Junk Cannon Energy Gun Variable Charge Gun Energy Cannon Heavy Phase Cannon Ballistic Gun Assault Rifle Launcher Grenade Launcher Special Weapon Junk Cannon Build | -11 -10 -10 -10 -7 -5 ------- Run | Yrd Mat Min Sub Scr Fac Slots Evolved 10 | . . . . . 10 Power 1 | . . . . . 1 Propulsion 2 | . . . . . 2 Utility 5 | . . . . . 5 Weapon 2 | . . . . . 2 Parts Attached 56 | 4 3 3 2 8 36 Power 8 | 1 . 1 . . 6 Engine 2 | 1 . . . . 1 Core 6 | . . 1 . . 5 Reactor . | . . . . . . Propulsion 17 | 2 . 1 1 3 10 Treads 10 | 2 . 1 1 3 3 Leg 5 | . . . . . 5 Wheel . | . . . . . . Hover 2 | . . . . . 2 Flight . | . . . . . . Utility 17 | 1 . 1 . 2 13 Device 9 | . . 1 . . 8 Storage 2 | 1 . . . 1 . Processor 4 | . . . . 1 3 Hackware . | . . . . . . Protection 2 | . . . . . 2 Artifact . | . . . . . . Weapon 14 | . 3 . 1 3 7 Energy Gun 3 | . . . . . 3 Energy Cannon 2 | . . . . . 2 Ballistic Gun 3 | . 3 . . . . Ballistic Cannon . | . . . . . . Launcher 4 | . . . 1 1 2 Special Weapon 2 | . . . . 2 . Impact Weapon . | . . . . . . Slashing Weapon . | . . . . . . Piercing Weapon . | . . . . . . Special Melee Weapon . | . . . . . . Unidentified Prototypes 1 | . . . . 1 . Parts Lost 35 | . 1 . . . 34 Power 8 | . 1 . . . 7 Propulsion 13 | . . . . . 13 Utility 5 | . . . . . 5 Weapon 9 | . . . . . 9 Highest Loss Streak 12 | . 1 . . . 12 To Critical Strikes 1 | . . . . . 1 Average Backups 7 | 3 5 7 8 7 8 Power . | . 1 1 1 1 . Propulsion 1 | 1 2 2 1 1 1 Utility 2 | . . . . 1 3 Weapon 3 | 2 2 4 5 3 2 Tool/Special . | . . . . . . Unused Backups 5 | . . . 1 4 . Power . | . . . . . . Propulsion 1 | . . . 1 . . Utility 1 | . . . . 1 . Weapon 1 | . . . . 1 . Tool/Special 2 | . . . . 2 . Average Slot Usage (%) 84 | . 81 94 100 87 75 Engine 1 | . 10 . . . 1 Core 10 | . . 12 14 14 6 Treads 23 | . 28 28 28 28 16 Leg 1 | . . . . . 2 Device 10 | . . 10 14 6 14 Storage 10 | . 14 14 14 14 5 Processor 6 | . . . . 7 7 Energy Cannon 2 | . . . . . 5 Ballistic Gun 4 | . 27 28 15 1 . Launcher 6 | . . . 12 8 2 Special Weapon 3 | . . . . 6 3 Peak Build Rating 90 | 4 6 11 13 36 90 Average Rating 38 | 2 5 10 12 19 73 On Entrance 11 | . 4 5 11 13 36 Avg Prop Armor Cover (%) 11 | . 12 12 . . 11 Naked Turns . | . . . . . . Heaviest Build 76 | 10 14 14 16 39 76 Greatest Support 95 | 40 40 40 40 50 95 Greatest Overweight (x) 6 | 1 . . . . 6 Average Overweight (x) . | . . . . . . Largest Inventory Capacity 15 | 8 8 8 8 15 15 Average Capacity 11 | 7 8 8 8 10 15 Most Carried 15 | 6 7 8 8 15 15 Average Carried 8 | 4 5 7 7 8 9 Final Capacity 15 | 8 8 8 8 15 15 Final Carried 15 | 6 7 8 8 15 . Scrap Suit Usage (%) 26 | . . . . . 67 Parts Cannibalized 5 | . . . . . 5 Class Distribution -------------------- 67% | Mutant 25% | Scrapper 5% | Scavenger-Gunner Dominant Class ---------------- Mutant | -10/Materials Mutant | -10/Mines Mutant | -10/Subcaves Mutant | -7/Scraptown Scrapper | -5/Factory Resources | -11 -10 -10 -10 -7 -5 ----------- Run | Yrd Mat Min Sub Scr Fac Matter Collected 2036 | 215 79 84 14 239 1405 Remotely 370 | . . . . . 370 Salvage Created 1761 | . 142 84 64 70 1401 Parts 82 | . 9 5 2 . 66 Haulers Intercepted 1 | . . . . . 1 Recyclers Shooed . | . . . . . . Parts Field Recycled . | . . . . . . Retrieved Matter . | . . . . . . Parts Self-Destructed 6 | . . . 6 . . Prevented . | . . . . . . Parts Restored . | . . . . . . Kills | -11 -10 -10 -10 -7 -5 ------- Run | Yrd Mat Min Sub Scr Fac Combat Hostiles Destroyed 45 | . 6 2 2 1 34 Guns 8 | . 5 2 . . 1 Cannons 11 | . . . . . 11 AOE 20 | . 1 . 2 . 17 Classes Destroyed 14 | . 2 . 1 1 10 Worker 3 | . . . . . 3 Builder 5 | . . . . . 5 Tunneler 1 | . . . . . 1 Hauler 1 | . . . . . 1 Operator 1 | . . . . . 1 Watcher 3 | . . . . . 3 Swarmer 13 | . 3 . . . 10 Grunt 18 | . 3 2 . . 13 Sentry 2 | . . . . . 2 Specialist 2 | . . . . . 2 Hunter 1 | . . . . . 1 Programmer 6 | . . . . . 6 Subdweller 2 | . . . 2 . . Scrapper 1 | . . . . 1 . Best Kill Streak 26 | . 3 2 2 1 26 Combat Bots Only 11 | . 3 2 2 1 11 Max Kills in Single Turn 4 | . 1 1 1 1 4 Gunslinging . | . . . . . . Exploded 4 | . 1 . 1 . 4 Melee . | . . . . . . Uniques/NPCs Destroyed . | . . . . . . Combat | -11 -10 -10 -10 -7 -5 -------- Run | Yrd Mat Min Sub Scr Fac Hostile Shots Fired 401 | . 33 12 4 10 342 Missed 85 | . 11 4 3 1 66 Hits 316 | . 22 8 1 9 276 Melee 2 | . . . . . 2 Projectile 314 | . 22 8 1 9 274 AOE 1 | . . . . . 1 Critical Strikes 13 | . . 1 . 1 11 Actively Blocked 1 | . . . . . 1 Part Disruptions 2 | . . . . . 2 Damage Taken 7410 | . 486 107 87 127 6603 Core 1237 | . 150 53 10 9 1015 Absorbed by Shields . | . . . . . . Regen/Repaired (Parts) 42 | . . . . . 42 Core Remaining (%) 55 | 100 . . . 11 . Volleys Fired 114 | . 17 7 15 6 69 Largest 4 | . 2 2 2 1 4 Hottest 470 | . 40 40 50 . 470 Shots Fired 208 | . 33 12 22 6 135 Gun 91 | . 33 12 13 . 33 Cannon 51 | . . . . . 51 Launcher 27 | . . . 9 . 18 Special 39 | . . . . 6 33 Kinetic 58 | . 33 12 13 . . Thermal 79 | . . . . . 79 Explosive 27 | . . . 9 . 18 Electromagnetic 5 | . . . . . 5 Impact 39 | . . . . 6 33 Robot Hit Streak 12 | . 5 9 9 3 12 Robot Miss Streak 4 | . 2 2 . 1 4 Penetration Max . | . . . . . . Secondary Targets 3 | . 2 1 . . . Max Gunslinging Chain 1 | . 1 1 . . . Shots Hit Robots 120 | . 17 10 4 3 86 Core Hits 83 | . 8 6 6 . 63 Critical Kills 1 | . . . . . 1 Critical Parts Destroyed 7 | . . . . 1 6 Critical Strikes 8 | . . . . 1 7 Meltdown 1 | . . . . . 1 Smash 7 | . . . . 1 6 Melee Attacks . | . . . . . . Impact . | . . . . . . Slashing . | . . . . . . Piercing . | . . . . . . Sneak Attacks . | . . . . . . Combat Hostiles . | . . . . . . Follow-up Attacks . | . . . . . . Damage Inflicted 7084 | . 346 92 255 201 6190 Guns 679 | . 231 92 . . 356 Cannons 956 | . . . . . 956 Explosions 3380 | . 109 . 255 . 3016 Melee . | . . . . . . Ramming 62 | . 6 . . . 56 Kinetic 323 | . 231 92 . . . Thermal 1293 | . . . . . 1293 Explosive 3380 | . 109 . 255 . 3016 Electromagnetic 19 | . . . . . 19 Impact 2007 | . . . . 201 1806 Slashing . | . . . . . . Piercing . | . . . . . . Highest Corruption 21 | . . . . . 21 Average Corruption 6 | . . . . . 6 Corruption Purged . | . . . . . . Corruption Blocked . | . . . . . . Effects 21 | . . . . . 21 Message Errors 3 | . . . . . 3 Matter Fused 7 | . . . . . 7 Heat Flow Errors 1 | . . . . . 1 Energy Discharges 3 | . . . . . 3 Parts Rejected 1 | . . . . . 1 Parts Fused 1 | . . . . . 1 Data Loss (minor) 1 | . . . . . 1 Data Loss (major) 2 | . . . . . 2 Misdirections 2 | . . . . . 2 Overload Shots 1 | . . . . . 1 Overflow Damage 909 | . 12 . . 102 795 Projectiles 692 | . . . . 102 590 Explosions 217 | . 12 . . . 205 Melee . | . . . . . . Knockbacks 15 | . . . . 3 12 Impact 14 | . . . . 3 11 Kinetic . | . . . . . . Secondary 1 | . . . . . 1 Self-Inflicted Damage 564 | . 233 . 69 . 262 Shots 12 | . 2 . 5 . 5 Rammed 2 | . . . . . 2 Targets Rammed 2 | . . . . . 2 Kicked . | . . . . . . Crushed . | . . . . . . Highest Temperature 441 | . 8 22 . 19 441 Average Temperature 106 | . 3 11 . 10 112 Received Heat Transfer 952 | . 90 78 6 61 717 Effects 2 | . . . . . 2 Shutdowns 2 | . . . . . 2 Siege Activations . | . . . . . . Martial Activations . | . . . . . . Shielding Activations . | . . . . . . Robots Disrupted . | . . . . . . Combat Hostiles . | . . . . . . Robots Corrupted 6 | . . . . 1 5 Combat Hostiles 5 | . . . . 1 4 Parts Fried 6 | . . . . 1 5 Impact Corruptions 16 | . . . . 3 13 Robots Melted 1 | . . . . . 1 Combat Hostiles 1 | . . . . . 1 Parts Melted 3 | . . . . . 3 Heat Transferred 1509 | . . . . . 1509 Parts Sabotaged . | . . . . . . Parts Stolen . | . . . . . . Parts Stripped . | . . . . . . Power Chain Reactions . | . . . . . . Alert | -11 -10 -10 -10 -7 -5 ------- Run | Yrd Mat Min Sub Scr Fac Maximum Alert Level 3 | . . . . . 3 Low Security (%) 74 | 100 100 100 . . 67 Level 1 5 | . . . . . 6 Level 2 10 | . . . . . 13 Level 3 9 | . . . . . 12 Level 4 . | . . . . . . Level 5 . | . . . . . . High Security . | . . . . . . Max Security . | . . . . . . Peak Influence 765 | . 156 102 . . 765 Initial 52 | . . 52 . . . Average 197 | . 71 53 . . 232 Influence Increases 1749 | . 216 50 . . 1483 Destroy 0b10 Robot/C 1000 | . 120 40 . . 840 Destroy 0b10 Robot/NC 70 | . . . . . 70 Destroy Leader 208 | . 30 10 . . 168 Allied During Kill 69 | . . . . . 69 Disable Machine 45 | . 30 . . . 15 Destroy Structure 282 | . 36 . . . 246 Partial Spotted 15 | . . . . . 15 Lose Combat Pursuer 60 | . . . . . 60 Influence Decreases 1146 | . 80 184 2 . 880 Entered New Map 86 | . . 84 2 . . Time Decay 610 | . 70 100 . . 440 Lost Part 350 | . 10 . . . 340 Lost Ally 100 | . . . . . 100 Squads Dispatched 16 | . 1 . . . 15 Investigation 3 | . 1 . . . 2 Extermination 4 | . . . . . 4 Reinforcement 6 | . . . . . 6 Assault 2 | . . . . . 2 Garrison 1 | . . . . . 1 Intercept . | . . . . . . Searches Triggered . | . . . . . . Construction Impeded 1 | . . . . . 1 Haulers Reinforced 1 | . . . . . 1 Active Scanning Responses . | . . . . . . Cargo Convoy Interrupts 1 | . . . . . 1 Stealth | -11 -10 -10 -10 -7 -5 --------- Run | Yrd Mat Min Sub Scr Fac Distress Signals 2 | . . . . . 2 Communications Jammed . | . . . . . . Distress Signals . | . . . . . . Times Spotted 69 | . 6 2 2 4 55 Peak Tracking Total 8 | . 2 2 2 4 8 Tactical Retreats 4 | . . . . . 4 Traps | -11 -10 -10 -10 -7 -5 ------- Run | Yrd Mat Min Sub Scr Fac Traps Triggered 1 | . . . . . 1 Indirectly . | . . . . . . Trap Hack Attempts . | . . . . . . Triggered . | . . . . . . Disarmed . | . . . . . . Reprogrammed . | . . . . . . Reused . | . . . . . . Traps Extracted . | . . . . . . Installed . | . . . . . . Triggered . | . . . . . . Machines | -11 -10 -10 -10 -7 -5 ---------- Run | Yrd Mat Min Sub Scr Fac Machines Disabled 5 | . 3 . . 1 1 Max in Single Turn 3 | . 3 . . 1 1 Machines Repaired . | . . . . . . Machines Dismantled . | . . . . . . Machines Sabotaged . | . . . . . . Overloaded Fab Kills . | . . . . . . Hacking | -11 -10 -10 -10 -7 -5 --------- Run | Yrd Mat Min Sub Scr Fac Machines Accessed 11 | . 1 . . 2 8 Terminals 3 | . 1 . . . 2 Fabricators 3 | . . . . . 3 Repair Stations . | . . . . . . Recycling Units 2 | . . . . . 2 Scanalyzers . | . . . . . . Garrison Access 1 | . . . . . 1 Total Hacks 26 | . 4 . . 11 11 Successful 13 | . . . . 11 2 Failed 13 | . 4 . . . 9 Catastrophic 4 | . 1 . . . 3 Database Lockouts . | . . . . . . Manual 3 | . . . . . 3 Terminals 7 | . 4 . . . 3 Fabricators 3 | . . . . . 3 Repair Stations . | . . . . . . Recycling Units 3 | . . . . . 3 Scanalyzers . | . . . . . . Garrison Access 2 | . . . . . 2 Terminal Hacks 12 | . . . . 11 1 Record 11 | . . . . 11 . Open DSF 1 | . . . . . 1 Fabricator Hacks . | . . . . . . Repair Station Hacks . | . . . . . . Recycling Unit Hacks . | . . . . . . Scanalyzer . | . . . . . . Garrison Access Hacks . | . . . . . . Unauthorized Hacks 1 | . . . . . 1 Terminals . | . . . . . . Fabricators . | . . . . . . Repair Stations . | . . . . . . Recycling Units 1 | . . . . . 1 Fedlink 1 | . . . . . 1 Scanalyzers . | . . . . . . Garrison Access . | . . . . . . Data Cores Recovered . | . . . . . . Used . | . . . . . . Hacking Detections 7 | . 1 . . . 6 Full Trace Events 1 | . 1 . . . . Feedback Events . | . . . . . . Feedback Blocked . | . . . . . . Robot Schematics Acquired . | . . . . . . Robots Built . | . . . . . . Authchips . | . . . . . . Time . | . . . . . . Total Robot Build Rating . | . . . . . . Part Schematics Acquired . | . . . . . . Parts Built . | . . . . . . Authchips . | . . . . . . Time . | . . . . . . Total Part Build Rating . | . . . . . . Part Studies Acquired . | . . . . . . Parts Repaired . | . . . . . . Time . | . . . . . . Parts Recycled . | . . . . . . Recycled Matter . | . . . . . . Retrieved Matter . | . . . . . . Retrieved Components . | . . . . . . Parts Scanalyzed . | . . . . . . Part Schematics Acquired . | . . . . . . Parts Damaged . | . . . . . . Bothacking | -11 -10 -10 -10 -7 -5 ------------ Run | Yrd Mat Min Sub Scr Fac Used RIF Installer . | . . . . . . Robots Hacked . | . . . . . . Non-combat . | . . . . . . Combat . | . . . . . . Robot Hacks Applied . | . . . . . . Relay Couplers Released . | . . . . . . Fabnet Peak Effective % . | . . . . . . Robots Rewired . | . . . . . . Allies Hacked . | . . . . . . Hacks Repelled . | . . . . . . Allies | -11 -10 -10 -10 -7 -5 -------- Run | Yrd Mat Min Sub Scr Fac Total Allies 5 | . . . . . 5 Largest Group 5 | . . . . . 5 Highest-Rated Group 235 | . . . . . 235 Highest-Rated Ally 47 | . . . . . 47 Total Orders . | . . . . . . Ally Attacks 55 | . . . . . 55 Total Damage 1172 | . . . . . 1172 Kills 8 | . . . . . 8 Allies Corrupted 1 | . . . . . 1 Allies Melted 1 | . . . . 1 . Intel | -11 -10 -10 -10 -7 -5 ------- Run | Yrd Mat Min Sub Scr Fac Active Infowar (turns) . | . . . . . . Robot Analysis Total . | . . . . . . Derelict Logs Recovered . | . . . . . . Drone Launches . | . . . . . . Drone Recoveries . | . . . . . . Exploration | -11 -10 -10 -10 -7 -5 ------------- Run | Yrd Mat Min Sub Scr Fac Turns Passed 4801 | 77 166 201 539 1935 1883 Spaces Moved 2655 | 45 65 87 310 1148 1000 Core 14 | 13 . . . . 1 Treads 2436 | 32 65 87 310 1148 794 Legs 151 | . . . . . 151 Wheels . | . . . . . . Hover 54 | . . . . . 54 Flight . | . . . . . . Fastest Speed 50 | 50 160 160 160 140 116 Average Speed 160 | 141 160 160 160 164 156 Slowest Speed 350 | 160 160 160 160 165 350 Overloaded Moves . | . . . . . . Propulsion Burnouts . | . . . . . . Robots Hopped . | . . . . . . Potential Cave-ins . | . . . . . . Cave-ins Triggered . | . . . . . . Exploration Rate (%) 26 | 4 16 16 25 69 26 Regions Visited 5 Branch Regions 3 Pre-discovered Areas 2 | . . . 1 1 . Known Exits Taken 1 | . . . . 1 . Unknown Exits Taken 4 | 1 1 1 1 . . Scrap Searched 2 | . . . . 2 . Spaces Dug 1 | . . . . 1 . Terrain Destroyed 200 | . 39 . 36 2 123 Melee . | . . . . . . Projectile 34 | . . . . 2 32 AOE 166 | . 39 . 36 . 91 Terrain Rammed 8 | . 2 . . . 6 Walls Destroyed . | . . . . . . Machines Disabled . | . . . . . . Actions | -11 -10 -10 -10 -7 -5 --------- Run | Yrd Mat Min Sub Scr Fac Total 3003 | 58 93 139 332 1192 1189 Wait 79 | . 4 38 2 5 30 Move 2650 | 44 64 86 309 1147 1000 Hop . | . . . . . . Pick Up 59 | 10 3 4 2 13 27 Fast Attach 1 | . . . . 1 . Attach 54 | 4 2 3 . 2 43 Detach 7 | . . . . 1 6 Swap 13 | . 1 . 2 5 5 Drop 16 | . . 1 2 12 1 Fire 114 | . 17 7 15 6 69 Melee . | . . . . . . Ram 8 | . 2 . . . 6 Kick . | . . . . . . Crush 2 | . . . . . 2 Escape Stasis . | . . . . . . Rewire . | . . . . . . Trap . | . . . . . . Miscellaneous . | . . . . . . Route ------- -11/Scrapyard -10/Materials -10/Mines -10/Subcaves -7/Scraptown -5/Factory History --------- Turn | Location | Event 19 | -11/Scrapyard | Discovered new exit (range 14) 78 | -11/Scrapyard | Entered Materials 205 | -10/Materials | Discovered new exit (range 11) 206 | -10/Materials | Core integrity fell below 50% 244 | -10/Materials | Entered Mines 251 | -10/Mines | Core integrity fell below 20% 303 | -10/Mines | Build established: Mutant 339 | -10/Mines | Received a Rocket Launcher from a helpful Derelict 431 | -10/Mines | Discovered new exit (range 5) 445 | -10/Mines | Entered Subcaves 446 | -10/Subcaves | Approached by a straggling Scientist 447 | -10/Subcaves | Shifting Twisted Machinery released Spk. Treads 448 | -10/Subcaves | Shifting Twisted Machinery released Multitool 470 | -10/Subcaves | Shifting Twisted Machinery released Flamer 644 | -10/Subcaves | A swath of the cavern ceiling suddenly collapsed 790 | -10/Subcaves | Scientist uncovered a shortcut to Scraptown 820 | -10/Subcaves | Learned location of Zion (-7) 820 | -10/Subcaves | Met a Zionite searching for "candidates" 919 | -10/Subcaves | Ambushed by Subdwellers from Twisted Machinery 984 | -10/Subcaves | Entered Scraptown 1478 | -7/Scraptown | Visited Cave Peace 1588 | -7/Scraptown | Visited IN-MT5's Study 1714 | -7/Scraptown | Visited Cyclists 1773 | -7/Scraptown | Visited Awakened 1836 | -7/Scraptown | Visited UFD Registry 1836 | -7/Scraptown | Registered with UFD as "Wirerider" 1889 | -7/Scraptown | Visited Supply Room 1955 | -7/Scraptown | Visited LU-1G1's Boring Crew 2029 | -7/Scraptown | Visited Junk Cannon Lab 2037 | -7/Scraptown | Found Prototype Special Weapon 2044 | -7/Scraptown | Identified Junk Cannon 2499 | -7/Scraptown | Visited Observation Area 2570 | -7/Scraptown | Visited Scrapoid Pod Storage 2578 | -7/Scraptown | Found Scrapoid Pod 2657 | -7/Scraptown | Met Optimus 2657 | -7/Scraptown | Accepted into 0bPrime 2738 | -7/Scraptown | Visited Scrap Suit Storage 2744 | -7/Scraptown | Found Scrap Suit 2747 | -7/Scraptown | Found Scrap Suit 2827 | -7/Scraptown | Visited Modified Component R&D 2850 | -7/Scraptown | Civil war broke out across Scraptown 2886 | -7/Scraptown | Discovered new exit (range 8) 2911 | -7/Scraptown | Lost 3 allies 2917 | -7/Scraptown | Identified exit to Factory 2919 | -7/Scraptown | Entered Factory 2919 | -5/Factory | Evolved 10 slots: Power x1, Propulsion x2, Utility x5, Weapon x2 3221 | -5/Factory | Build established: Scrapper 3735 | -5/Factory | Garrison activated, responded to threat 4090 | -5/Factory | Scrapoid Pod released 05F05-D (x5) 4128 | -5/Factory | Loaded intel: 8 recycling unit locations 4196 | -5/Factory | Lost 7 parts (2p3n1u1w) 4283 | -5/Factory | Cargo convoy interrupted 4395 | -5/Factory | Lost 3 parts (2p1n) 4400 | -5/Factory | Destroyed 11 combat bots 4419 | -5/Factory | First assault squad dispatched 4654 | -5/Factory | Lost 12 parts (1p3n3u5w) 4687 | -5/Factory | Core integrity fell below 50% 4708 | -5/Factory | System corruption reached 10% 4723 | -5/Factory | Lost 4 parts (1p2n1w) 4738 | -5/Factory | Core integrity fell below 20% 4802 | -5/Factory | Destroyed by B-60 Warrior with Heavy Mace Last Messages --------------- C-45 Heavy ARC bursts open, deploying its payload. G-67 Veteran unfolds itself. B-60 Warrior unfolds itself. M-28 Smith unfolds itself. M-28 Smith repairs K-01 Serf Wheel. K-01 Serf collects debris. System corrupted: Energy discharge (-9). K-01 Serf collects debris. The unstable cave ceiling collapses. System corrupted: Graphene Brace rejected. O-16 Technician: "IFF HANDSHAKE FAILED. SECURING TERMINAL." O-16 Technician uses terminal to summon reinforcements. ALERT: Hostiles spotted, dispatching reinforcements to Terminal F018. O-16 Technician locks terminal. Terminal unresponsive. Knocked back. Map ----- +----------------------------------------------------+ | | | | | | | | | | | | | | | | | | | | | | | | | ???????????????################## # # ###### | | ???????????????# % ! | | ???????????????# """ | | ???????????????# """ | | ???????????????# """ | | ???????????????# | | ???????????????# ! ! | | ???????????????# m | | ???????????????##########/######## | | ?????????????????????# gb #???#### +####### | | ?????????????????????# o ########## | | ?????????????????????# | | ?????????????????????+ bTb % | | ?????????????????????# @ | | ?????????????????????# ########## | | ?????????????????????# #????????### #### | | ?????????????????????#########??????????# #??# | | ????????????????????????????????????????# #??# | | ????????????????????????????????????????# #??# | | ????????????????????????????????????????# ???# | | ????????????????????????????????????????#+???# | | ?????????????????????????????????????????????# | | ?????????????????????????????????????????????# | | ?????????????????????????????????????????????# | | ?????????????????????????????????????????????# | | ?????????????????????????????????????????????+ | | ?????????????????????????????????????????????# | | ?????????????????????????????????????????????# | | ?????????????????????????????????????????????+ | | ?????????????????????????????????#############"#+# | | ?????????????????????????????????# # | | ?????????????????????????????????# # """ " | | ?????????????????????????????????# " " " # """ " | | ?????????????????????????????????# " " " # """ " | | ####?????????????????????????????# " " " # | | #???????????????????????###+### " " " # """ " | | #???????????????????????# # " " " """ " | | " #???????????????????????# # " " " """ " | +----------------------------------------------------+ Best States ------------- Heat Dissipation 40 Coolant Potential 80 Energy Generation 32 Energy Capacity 365 Matter Stores 300 Matter Capacity 300 Sight Range 16 Terrain Scan Density 10 Power Amplification 20 Armor Coverage 600 Evasion (%) 40 Target Analysis 9 Recoil Reduction 4 Kinecelleration 30 Item Schematics ----------------- None Robot Schematics ------------------ None Fabricated ------------ Nothing Repaired ---------- Nothing Studied --------- None Alien Tech Used ----------------- None Achievements -------------- I Laugh At Your Crits Jackpot Nice Directions, Buddy Challenges ------------ None Game ------ Seed TrapGreatStreamer Manual? 0 Play Time 00:54:11 Cumulative 30.6 hours Start 2025.10.28 @ 09:53:36 End 2025.10.29 @ 08:42:11 Sessions 5 Manual Loads 0 Difficulty Rogue Special Mode None Game No. 39 Rogue 39 Adventurer 0 Explorer 0 Win Type - Total 0 Types 0/0/0/0/0/0/0/0/0/0 Lore% 29 Gallery% 30 Achievement% 23 Wizard Run 0 Options --------- Layout 2 ASCII 0 Keyboard 0 Movement Mouse Keybinds 0 Fullscreen 1 Font 16/SmallcapsGlow Map View 25x24 Zoom Use 83% Tactical HUD 0 Map Filters NONE Filters NONE Steam SD RUN: f904bb88-0ca5-4d1e-8324-9249156c1e92